bitfinex-derivatives/quotes_SOLF0:USTF0_20240926
["timestamp","ask_amount","ask_price","bid_price","bid_amount"]
[1727354883207,17.31,152.69,152.65,3.2751]
[1727354883403,17.31,152.69,152.6,95.91]
[1727354883604,17.31,152.69,152.61,1.20396153]
[1727354884008,17.31,152.69,152.63,3.2756]
[1727354884408,17.31,152.69,152.59,78.6]
[1727354884609,17.31,152.69,152.6,1.20399238]
[1727354884805,17.31,152.69,152.61,1.20399238]
[1727354885005,17.31,152.69,152.59,78.6]
[1727354885305,17.31,152.69,152.6,1.2039867]
[1727354885508,17.31,152.69,152.61,1.2039867]
[1727354885702,17.31,152.69,152.59,78.6]
[1727354885903,17.31,152.69,152.64,3.2754]
[1727354887600,17.31,152.67,152.63,3.2756]
[1727354887805,17.31,152.67,152.59,78.6]
[1727354888001,17.31,152.67,152.6,1.20406514]
[1727354888405,17.31,152.67,152.62,3.2757]
[1727354888806,17.31,152.67,152.59,78.6]
[1727354889007,2.6415,152.68,152.6,1.2040654]
[1727354889317,2.6415,152.68,152.65,3.2752]
[1727354889713,2.6415,152.68,152.59,78.6]
[1727354890009,2.6415,152.68,152.63,3.2755]
[1727354891008,2.6415,152.68,152.64,3.2754]
[1727354892512,2.6415,152.68,152.65,3.2753]
[1727354894015,2.6415,152.68,152.65,6.49297905]
[1727354894213,2.6415,152.68,152.65,3.2753]
[1727354894814,17.31,152.66,152.57,81.94523653]
[1727354895021,17.31,152.63,152.57,81.94523653]
[1727354895211,17.31,152.63,152.61,3.2761]
[1727354895417,17.31,152.65,152.57,81.94523653]
[1727354896313,3.2749,152.67,152.57,81.94523653]
[1727354896314,17.31,152.67,152.57,99.25523653]
[1727354896716,20.5849,152.67,152.57,99.25523653]
[1727354896917,20.5849,152.67,152.6,3.2762]
[1727354897215,20.5849,152.67,152.57,81.94523653]
[1727354897216,17.31,152.65,152.57,81.94523653]
[1727354897421,17.31,152.65,152.6,3.2763]
[1727354897619,17.31,152.65,152.57,81.94523653]
[1727354898316,17.31,152.67,152.57,99.25523653]
[1727354898622,17.31,152.67,152.61,3.276]
[1727354899019,17.31,152.67,152.57,20.65523653]
[1727354900723,17.31,152.67,152.61,3.2759]
[1727354901117,17.31,152.67,152.62,3.2759]
[1727354901316,20.5849,152.67,152.62,3.2759]
[1727354901522,17.31,152.65,152.57,3.34523653]
[1727354901726,17.31,152.65,152.6,3.2763]
[1727354901919,17.31,152.65,152.6,3.2446425]
[1727354902135,17.31,152.65,152.55,78.62]
[1727354902315,11.07,152.62,152.61,3.2761]
[1727354902621,11.07,152.62,152.61,3.29510452]
[1727354902822,11.07,152.62,152.57,11.07]
[1727354903320,11.07,152.62,152.57,14.35298053]
[1727354903720,11.07,152.62,152.58,3.2766]
[1727354904523,11.07,152.62,152.59,3.2765]
[1727354904721,11.07,152.62,152.58,11.07]
[1727354904925,11.07,152.64,152.58,11.07]
[1727354905741,11.07,152.64,152.6,3.2762]
[1727354906625,11.07,152.64,152.61,3.276]
[1727354906823,2.6415,152.68,152.61,11.07]
[1727354907038,11.07,152.66,152.61,11.07]
[1727354908032,11.07,152.66,152.62,3.2757]
[1727354908825,13.7115,152.68,152.63,11.07]
[1727354909031,2.6415,152.68,152.63,11.07]
[1727354909328,2.6415,152.68,152.65,3.2751]
[1727354909528,2.6415,152.68,152.65,6.59772926]
[1727354909728,2.6415,152.68,152.65,3.2751]
[1727354910330,2.6415,152.68,152.65,6.50139267]
[1727354911432,13.7115,152.68,152.64,3.2754]
[1727354911830,13.7115,152.68,152.64,6.572148]
[1727354912136,11.07,152.67,152.62,11.07]
[1727354912330,11.07,152.67,152.63,3.29576526]
[1727354912531,11.07,152.65,152.63,3.29576526]
[1727354912729,11.07,152.65,152.6,11.07]
[1727354913133,11.07,152.64,152.6,3.21485342]
[1727354913330,11.07,152.62,152.57,89.69]
[1727354913638,11.07,152.62,152.59,3.2763]
[1727354914435,17.3,152.65,152.59,3.2763]
[1727354914828,17.3,152.67,152.61,3.2761]
[1727354915735,17.3,152.67,152.57,99.27047084]
[1727354915948,2.6415,152.68,152.59,17.3]
[1727354916236,2.6415,152.68,152.66,3.275]
[1727354916444,2.6415,152.68,152.61,17.3]
[1727354916932,2.6415,152.68,152.65,3.2751]
[1727354917133,2.6415,152.68,152.66,3.2289346]
[1727354917940,6.5451,152.78,152.65,3.2751]
[1727354917941,17.3,152.74,152.65,3.35211636]
[1727354918146,17.3,152.76,152.66,17.3]
[1727354918334,8.6555,152.77,152.68,17.3]
[1727354918642,5.3827,152.77,152.68,20.60231948]
[1727354919043,8.6554,152.77,152.68,20.60231948]
[1727354919339,5.3827,152.77,152.68,20.60231948]
[1727354919844,5.3827,152.77,152.72,3.2737]
[1727354920233,5.3827,152.77,152.68,20.60231948]
[1727354920437,8.6555,152.77,152.71,3.2739]
[1727354920736,5.3827,152.77,152.68,20.60231948]
[1727354920941,5.3827,152.77,152.72,3.2737]
[1727354921544,5.3827,152.77,152.73,3.2735]
[1727354922144,5.3827,152.77,152.7,17.3]
[1727354923242,5.3827,152.77,152.73,3.2734]
[1727354923736,5.3827,152.77,152.7,17.3]
[1727354923737,5.3827,152.77,152.74,3.2733]
[1727354924147,5.3827,152.77,152.7,17.3]
[1727354924647,5.3827,152.77,152.72,3.2737]
[1727354925850,8.6554,152.77,152.71,3.2739]
[1727354926289,5.3827,152.77,152.68,20.60231948]
[1727354927848,5.3827,152.77,152.7,17.3]
[1727354928142,5.3827,152.77,152.72,17.3]
[1727354928537,5.3827,152.77,152.72,3.30407718]
[1727354928743,5.3827,152.77,152.7,17.3]
[1727354929043,5.3827,152.77,152.7,20.56740523]
[1727354930449,17.3,152.82,152.72,17.3]
[1727354930851,3.272,152.81,152.74,3.2732]
[1727354931150,17.3,152.82,152.73,3.34838811]
[1727354931353,3.2723,152.79,152.73,6.62178811]
[1727354932052,3.2721,152.8,152.74,3.2733]
[1727354932441,17.3,152.8,152.7,17.3]
[1727354932751,17.3,152.78,152.7,3.30942671]
[1727354932953,17.3,152.78,152.68,95.88]
[1727354933248,20.5726,152.78,152.68,95.88]
[1727354933439,20.5726,152.78,152.68,99.07482645]
[1727354934450,20.5726,152.78,152.71,3.274]
[1727354935554,3.2724,152.79,152.72,3.2737]
[1727354935949,17.3,152.8,152.73,3.2735]
[1727354936154,17.3,152.8,152.7,17.3]
[1727354936856,20.5721,152.8,152.73,3.2735]
[1727354937246,17.3,152.8,152.74,3.2732]
[1727354937447,17.3,152.8,152.68,81.77482645]
[1727354937448,3.2719,152.81,152.72,17.3]
[1727354937654,17.3,152.82,152.72,17.3]
[1727354938056,3.2721,152.8,152.74,3.2732]
[1727354938952,3.2721,152.8,152.75,3.2731]
[1727354940054,3.2721,152.8,152.74,3.2732]
[1727354940250,3.2721,152.8,152.69,2.6275]
[1727354940451,3.2721,152.8,152.73,11.06]
[1727354940452,11.06,152.79,152.73,11.06]
[1727354940856,14.3323,152.79,152.73,11.06]
[1727354941062,11.06,152.77,152.72,11.06]
[1727354941255,7.8925,152.83,152.71,11.06]
[1727354941256,11.06,152.76,152.71,11.06]
[1727354941462,11.06,152.76,152.72,3.2736]
[1727354942461,8.0512,152.77,152.73,11.06]
[1727354942857,8.0512,152.77,152.73,14.3334]
[1727354943162,8.0512,152.77,152.73,3.2734]
[1727354943857,19.1112,152.77,152.73,3.2734]
[1727354944163,11.06,152.76,152.72,3.2736]
[1727354944961,19.1112,152.77,152.73,3.2735]
[1727354945862,19.1112,152.77,152.72,11.06]
[1727354945863,11.06,152.76,152.72,3.2737]
[1727354946064,11.06,152.76,152.7,11.06]
[1727354946761,11.06,152.76,152.7,14.32282009]
[1727354947162,11.06,152.76,152.7,11.06]
[1727354947469,11.06,152.74,152.7,11.06]
[1727354947659,11.06,152.73,152.68,11.06]
[1727354947861,11.06,152.72,152.68,3.2746]
[1727354950361,3.2736,152.73,152.69,3.2743]
[1727354950362,11.06,152.73,152.69,3.2743]
[1727354950561,11.06,152.74,152.69,11.06]
[1727354950862,11.06,152.75,152.72,3.2736]
[1727354951559,19.1112,152.77,152.73,3.2735]
[1727354951866,19.1112,152.77,152.72,11.06]
[1727354952063,11.06,152.75,152.7,11.06]
[1727354952266,8.0512,152.77,152.67,17.29]
[1727354952267,11.3241,152.77,152.67,17.29]
[1727354952466,11.3241,152.77,152.71,3.2738]
[1727354952663,8.0512,152.77,152.71,3.2738]
[1727354952970,8.0512,152.77,152.72,3.2737]
[1727354953567,11.324,152.77,152.72,3.2737]
[1727354956462,11.324,152.77,152.73,3.2735]
[1727354957368,8.0512,152.77,152.67,17.29]
[1727354957569,17.29,152.76,152.66,75.20819759]
[1727354958272,3.2734,152.74,152.69,3.2742]
[1727354958568,3.2734,152.74,152.66,75.20819759]
[1727354958569,17.29,152.74,152.66,71.97650625]
[1727354958762,3.2739,152.72,152.68,3.2745]
[1727354958961,17.29,152.74,152.66,71.97650625]
[1727354959761,20.5635,152.74,152.69,3.2743]
[1727354960362,20.5635,152.74,152.67,3.2747]
[1727354960363,17.29,152.74,152.67,3.2747]
[1727354960567,17.29,152.71,152.66,71.97650625]
[1727354960869,5.3744,152.7,152.66,71.97650625]
[1727354961071,8.6487,152.7,152.66,71.97650625]
[1727354962067,8.6487,152.7,152.66,75.25150625]
[1727354964981,20.5645,152.69,152.65,3.2752]
[1727354965277,5.3744,152.7,152.59,2.5634]
[1727354965278,17.29,152.67,152.59,2.5634]
[1727354965574,17.29,152.67,152.61,3.276]
[1727354965771,17.29,152.67,152.59,2.5634]
[1727354967375,17.29,152.67,152.62,3.2757]
[1727354968987,20.5648,152.67,152.62,3.2757]
[1727354969389,20.5648,152.67,152.59,2.5634]
[1727354969687,20.5648,152.67,152.58,78.6]
[1727354969688,3.2751,152.66,152.58,78.6]
[1727354970188,17.29,152.67,152.58,78.6]
[1727354970584,20.5649,152.67,152.61,3.2759]
[1727354972289,11.07,152.65,152.61,3.2759]
[1727354972989,11.07,152.65,152.62,3.2759]
[1727354973190,11.07,152.66,152.61,11.07]
[1727354973987,11.07,152.67,152.63,11.07]
[1727354974187,11.07,152.69,152.64,11.07]
[1727354974388,11.07,152.67,152.62,11.07]
[1727354974884,11.07,152.67,152.63,3.2755]
[1727354979692,11.07,152.67,152.64,3.2755]
[1727354979893,11.07,152.67,152.65,3.33224115]
[1727354980593,11.07,152.67,152.63,3.2756]
[1727354983086,11.07,152.67,152.62,14.3458]
[1727354983287,11.07,152.66,152.62,3.2758]
[1727354985101,11.07,152.67,152.63,3.2756]
[1727354985302,8.0351,152.7,152.64,11.07]
[1727354985490,11.07,152.69,152.64,11.07]
[1727354985895,14.3445,152.69,152.64,14.3453]
[1727354986094,11.07,152.68,152.64,3.2753]
[1727354986302,11.07,152.68,152.63,11.07]
[1727354986604,11.07,152.68,152.57,9.83136497]
[1727354986605,11.07,152.67,152.57,9.83136497]
[1727354986904,11.07,152.67,152.61,11.07]
[1727354987200,14.3448,152.67,152.62,3.2758]
[1727354987804,14.3448,152.67,152.61,14.346]
[1727354988701,14.3451,152.66,152.6,3.2762]
[1727354988901,14.3451,152.66,152.6,14.3462]
[1727354989405,14.3451,152.66,152.61,3.2761]
[1727354989707,11.07,152.66,152.62,11.07]
[1727354990097,11.07,152.66,152.62,14.3459]
[1727354990303,11.07,152.67,152.62,14.3459]
[1727354990506,11.07,152.69,152.63,11.07]
[1727354991103,11.07,152.69,152.64,3.2755]
[1727354991804,14.3444,152.69,152.63,14.3456]
[1727354992601,11.07,152.68,152.63,14.3456]
[1727354993797,11.07,152.68,152.64,3.2754]
[1727354994400,14.3446,152.68,152.63,14.3456]
[1727354994707,11.07,152.68,152.63,14.3456]
[1727354995299,11.07,152.68,152.64,3.2754]
[1727354995500,11.07,152.68,152.62,11.07]
[1727354996008,14.3448,152.68,152.62,14.3457]
[1727354996208,11.07,152.66,152.62,11.07]
[1727354996500,11.07,152.66,152.61,3.276]
[1727354996709,11.07,152.64,152.61,3.276]
[1727354997497,8.0351,152.7,152.57,81.97047084]
[1727354997498,14.346,152.62,152.57,81.97047084]
[1727354997697,11.07,152.61,152.57,81.97047084]
[1727354997907,11.07,152.61,152.57,3.35047084]
[1727354998104,11.07,152.61,152.55,11.07]
[1727354998797,11.07,152.61,152.56,3.2771]
[1727354999003,11.07,152.61,152.57,3.31126695]
[1727354999318,11.07,152.6,152.57,3.31126695]
[1727354999503,11.07,152.6,152.54,11.07]
[1727355000307,11.07,152.6,152.54,14.3475]
[1727355000515,11.07,152.58,152.54,14.3475]
[1727355000703,11.07,152.58,152.54,11.07]
[1727355001611,11.07,152.59,152.54,14.3476]
[1727355001807,16.2136,152.61,152.56,11.07]
[1727355002211,16.2136,152.61,152.55,14.3473]
[1727355002406,11.07,152.59,152.55,11.07]
[1727355003509,11.07,152.59,152.53,14.3477]
[1727355003916,11.07,152.58,152.53,14.3477]
[1727355005414,5.1436,152.61,152.56,11.07]
[1727355005617,16.2136,152.61,152.56,11.07]
[1727355007413,5.1436,152.61,152.57,11.07]
[1727355007609,5.1436,152.61,152.57,14.29756179]
[1727355008114,5.1436,152.61,152.58,3.2766]
[1727355009310,5.1436,152.61,152.59,3.2765]
[1727355009511,5.1436,152.61,152.57,14.29756179]
[1727355009718,16.2136,152.61,152.57,3.22756179]
[1727355009919,16.2136,152.61,152.56,11.07]
[1727355010119,16.2136,152.61,152.57,3.2769]
[1727355010915,19.4897,152.61,152.56,14.3471]
[1727355011325,11.07,152.59,152.53,11.07]
[1727355011920,11.07,152.59,152.55,3.2773]
[1727355012721,11.07,152.59,152.54,3.2775]
[1727355013121,11.07,152.59,152.53,11.07]
[1727355013522,11.07,152.59,152.55,3.2773]
[1727355015026,11.07,152.56,152.51,11.07]
[1727355015222,11.07,152.56,152.52,11.07]
[1727355015422,5.1436,152.61,152.52,11.07]
[1727355015618,11.07,152.58,152.52,11.07]
[1727355016023,11.07,152.58,152.54,3.2775]
[1727355016426,11.07,152.57,152.51,11.07]
[1727355016627,11.07,152.55,152.52,3.2779]
[1727355016827,11.07,152.55,152.5,71.99138022]
[1727355017023,2.6218,152.6,152.52,11.07]
[1727355017228,11.07,152.57,152.53,3.2778]
[1727355017529,11.07,152.57,152.52,11.07]
[1727355017721,11.07,152.57,152.54,14.3475]
[1727355018431,3.2751,152.66,152.6,3.2763]
[1727355018752,8.0041,152.7,152.62,11.07]
[1727355018932,11.07,152.67,152.62,11.07]
[1727355019131,11.07,152.67,152.63,11.07]
[1727355019428,11.07,152.68,152.63,11.07]
[1727355019630,11.07,152.68,152.64,3.2753]
[1727355019828,11.07,152.68,152.63,14.39765064]
[1727355020334,25.3141,152.7,152.6,17.31]
[1727355020630,3.2745,152.69,152.6,20.54602647]
[1727355020830,17.31,152.68,152.58,17.31]
[1727355021031,17.31,152.68,152.59,3.21440272]
[1727355021227,3.2749,152.67,152.6,3.2762]
[1727355021930,3.2749,152.67,152.61,3.2761]
[1727355022129,20.5847,152.68,152.59,3.21440272]
[1727355022430,20.5847,152.68,152.58,17.31]
[1727355022836,17.31,152.68,152.62,3.2758]
[1727355023829,20.5846,152.68,152.62,3.2758]
[1727355024727,20.5846,152.68,152.63,3.2756]
[1727355024932,8.0041,152.7,152.62,17.31]
[1727355025139,8.0041,152.7,152.64,17.31]
[1727355025330,5.3787,152.7,152.64,17.31]
[1727355025926,2.651,152.74,152.66,17.31]
[1727355026136,7.8387,152.74,152.66,17.31]
[1727355026337,11.1122,152.74,152.67,3.2747]
[1727355027426,3.2736,152.73,152.67,3.2747]
[1727355027732,17.31,152.73,152.62,20.50495412]
[1727355027934,3.2744,152.69,152.6,23.80335787]
[1727355028261,5.3497,152.68,152.63,3.2755]
[1727355028429,5.3497,152.68,152.6,20.62596816]
[1727355028633,5.3497,152.68,152.63,3.2757]
[1727355029032,5.3497,152.68,152.6,20.62596816]
[1727355029238,5.3497,152.68,152.63,3.2757]
[1727355030234,5.3497,152.68,152.64,3.2754]
[1727355031840,5.3497,152.68,152.63,3.2756]
[1727355032942,8.6243,152.68,152.62,3.2758]
[1727355034940,5.3497,152.68,152.63,3.2757]
[1727355036039,8.6243,152.68,152.62,3.2758]
[1727355036646,3.2748,152.67,152.6,3.31596816]
[1727355036840,3.2748,152.67,152.61,3.2759]
[1727355037349,3.2748,152.67,152.62,3.2759]
[1727355039750,8.089,152.68,152.6,3.34174311]
[1727355039946,17.31,152.66,152.56,17.31]
[1727355040148,17.31,152.66,152.58,6.49755439]
[1727355040450,3.2754,152.65,152.58,6.49755439]
[1727355040649,3.2754,152.65,152.6,3.2762]
[1727355042551,3.2755,152.64,152.57,9.8037784]
[1727355042744,17.31,152.64,152.54,17.31]
[1727355042940,17.31,152.64,152.55,6.49814176]
[1727355043248,17.31,152.64,152.56,6.49814176]
[1727355043445,17.31,152.64,152.55,6.49814176]
[1727355043646,17.31,152.62,152.53,78.62]
[1727355043845,8.1288,152.61,152.53,78.62]
[1727355045050,3.2767,152.59,152.54,3.2775]
[1727355045250,8.1288,152.61,152.53,78.62]
[1727355046046,3.2765,152.6,152.55,3.2774]
[1727355047957,20.5867,152.59,152.54,3.2776]
[1727355048152,17.31,152.59,152.54,3.2776]
[1727355048760,17.31,152.59,152.55,3.2773]
[1727355048951,25.4388,152.61,152.53,78.62]
[1727355049351,28.7151,152.61,152.56,3.277]
[1727355049752,25.4388,152.61,152.56,3.277]
[1727355050156,3.2763,152.6,152.56,3.277]
[1727355050661,5.3911,152.61,152.59,3.2765]
[1727355050850,5.3911,152.61,152.54,17.31]
[1727355051253,5.3911,152.61,152.57,3.2769]
[1727355051655,5.3911,152.61,152.54,17.31]
[1727355051959,5.3911,152.61,152.56,17.31]
[1727355052158,17.31,152.66,152.57,3.28601324]
[1727355052159,22.8248,152.66,152.57,3.28601324]
[1727355052455,5.5148,152.66,152.58,17.31]
[1727355054352,5.5148,152.66,152.6,17.31]
[1727355054756,3.2742,152.7,152.6,17.31]
[1727355055363,3.2742,152.7,152.63,3.2755]
[1727355055570,3.2746,152.69,152.6,20.66288719]
[1727355055857,3.2746,152.69,152.62,3.2758]
[1727355057351,3.2742,152.7,152.6,20.66288719]
[1727355057657,17.31,152.73,152.62,17.31]
[1727355057856,17.31,152.73,152.66,3.2749]
[1727355058055,3.2738,152.72,152.66,3.2749]
[1727355058853,17.31,152.73,152.65,3.2752]
[1727355059458,3.2741,152.71,152.65,3.2752]
[1727355059865,17.31,152.71,152.65,3.2752]
[1727355060058,3.2742,152.7,152.65,3.2752]
[1727355060760,3.2745,152.69,152.64,3.2754]
[1727355061767,3.2747,152.68,152.63,3.2756]
[1727355062252,8.5418,152.68,152.63,3.2756]
[1727355063561,3.2749,152.67,152.61,3.2761]
[1727355063781,20.5849,152.67,152.61,3.2761]
[1727355063969,20.5849,152.67,152.62,3.2758]
[1727355064156,17.31,152.67,152.58,20.59440285]
[1727355064755,17.31,152.67,152.62,3.2758]
[1727355065256,20.5848,152.67,152.62,3.2758]
[1727355065662,17.31,152.67,152.58,20.59440285]
[1727355066668,3.2751,152.66,152.61,3.276]
[1727355067564,7.8589,152.68,152.58,20.59440285]
[1727355067864,7.8589,152.68,152.6,17.31]
[1727355068169,17.31,152.69,152.54,95.93]
[1727355068170,20.584,152.71,152.66,3.2749]
[1727355068557,17.31,152.71,152.66,3.2749]
[1727355069374,20.5841,152.71,152.66,3.2749]
[1727355070177,3.2737,152.73,152.65,3.28931716]
[1727355070481,3.2737,152.73,152.64,17.31]
[1727355070482,25.4354,152.75,152.64,17.31]
[1727355070680,25.4354,152.75,152.66,17.31]
[1727355070973,28.7087,152.75,152.7,3.274]
[1727355071380,28.7087,152.75,152.71,3.274]
[1727355071579,8.1254,152.75,152.71,3.274]
[1727355071975,8.1254,152.75,152.68,17.31]
[1727355071976,8.1254,152.75,152.72,3.2737]
[1727355072774,8.1254,152.75,152.71,3.2739]
[1727355072981,8.1254,152.75,152.68,17.31]
[1727355072982,5.3159,152.75,152.68,17.31]
[1727355073282,17.31,152.8,152.74,3.2732]
[1727355073578,17.31,152.8,152.68,17.31]
[1727355073779,17.31,152.77,152.72,3.2736]
[1727355073978,5.3016,152.76,152.72,3.2736]
[1727355074778,5.3016,152.76,152.73,3.2735]
[1727355074976,5.3016,152.76,152.68,20.57161131]
[1727355075481,5.3016,152.76,152.73,3.2734]
[1727355075777,3.2726,152.78,152.7,17.31]
[1727355076173,3.2726,152.78,152.74,3.2733]
[1727355076381,3.2726,152.78,152.7,17.31]
[1727355076579,3.2727,152.77,152.7,20.6011956]
[1727355076771,17.31,152.79,152.7,20.6011956]
[1727355077378,20.5824,152.79,152.74,3.2732]
[1727355077574,17.31,152.79,152.74,3.2732]
[1727355077990,5.4405,152.8,152.74,3.2732]
[1727355078481,17.31,152.79,152.7,3.2911956]
[1727355078681,17.31,152.79,152.68,17.31]
[1727355078985,17.31,152.79,152.73,3.2733]
[1727355078986,3.2725,152.78,152.73,3.2733]
[1727355079182,3.2725,152.78,152.71,20.51310453]
[1727355079377,3.2725,152.78,152.71,17.31]
[1727355079588,3.2725,152.78,152.73,3.2734]
[1727355080177,17.31,152.79,152.72,3.2737]
[1727355080378,5.4405,152.8,152.69,17.31]
[1727355080379,17.31,152.77,152.69,17.31]
[1727355080783,3.273,152.76,152.71,3.2739]
[1727355081076,17.31,152.75,152.67,17.31]
[1727355081282,3.2738,152.72,152.67,3.2747]
[1727355082487,3.2738,152.72,152.66,3.275]
[1727355082684,3.2738,152.72,152.65,17.31]
[1727355082992,3.2738,152.72,152.65,20.53001703]
[1727355083281,3.2736,152.73,152.67,3.2747]
[1727355085083,3.2738,152.72,152.66,3.2749]
[1727355085480,17.31,152.73,152.64,3.2754]
[1727355085681,17.31,152.71,152.64,3.2754]
[1727355086085,20.584,152.71,152.65,3.2751]
[1727355086878,20.584,152.71,152.65,6.63026032]
[1727355088190,25.1174,152.74,152.65,3.35516032]
[1727355088392,25.1174,152.74,152.63,17.31]
[1727355088785,3.2736,152.73,152.65,17.31]
[1727355088986,3.2736,152.73,152.65,20.53458071]
[1727355089187,3.274,152.71,152.66,3.2749]
[1727355089782,3.2742,152.7,152.66,3.2749]
[1727355089986,3.2742,152.7,152.65,6.61999821]
[1727355090291,3.2742,152.7,152.63,17.31]
[1727355090687,3.2744,152.69,152.61,167.89250746]
[1727355091084,3.2743,152.7,152.64,3.2753]
[1727355092091,3.2743,152.7,152.61,89.31250746]
[1727355092092,25.1174,152.74,152.65,3.35341904]
[1727355092290,25.1174,152.74,152.63,17.31]
[1727355093593,3.2739,152.72,152.67,3.2748]
[1727355093892,25.1174,152.74,152.63,17.31]
[1727355094590,3.2741,152.71,152.66,3.2749]
[1727355098392,3.2741,152.71,152.65,6.63134734]
[1727355099192,3.2741,152.71,152.66,3.275]
[1727355099395,3.2738,152.72,152.65,3.35614734]
[1727355099589,3.2738,152.72,152.63,17.31]
[1727355100795,3.2738,152.72,152.66,3.2748]
[1727355100995,25.1174,152.74,152.65,3.20296121]
[1727355101195,25.1174,152.74,152.6,78.6]
[1727355101196,17.31,152.72,152.61,17.31]
[1727355101694,3.2745,152.69,152.61,17.31]
[1727355101900,17.31,152.72,152.63,17.31]
[1727355102395,7.8074,152.74,152.65,17.31]
[1727355102592,11.0809,152.74,152.65,20.64485615]
[1727355102798,5.2426,152.74,152.67,17.31]
[1727355103096,3.2728,152.77,152.69,17.31]
[1727355103505,60.91582744,152.78,152.71,3.2738]
[1727355104004,3.2727,152.77,152.71,3.2738]
[1727355104501,3.2727,152.77,152.69,17.31]
[1727355104502,3.2727,152.77,152.72,3.2737]
[1727355105031,3.2729,152.76,152.71,3.2738]
[1727355105201,60.91582744,152.78,152.69,17.31]
[1727355105393,78.22582744,152.78,152.67,17.31]
[1727355105594,3.2733,152.75,152.7,3.2741]
[1727355107002,3.2733,152.75,152.69,3.2743]
[1727355107408,5.3478,152.76,152.68,3.2745]
[1727355107705,17.31,152.75,152.68,3.2745]
[1727355108102,17.31,152.75,152.66,3.2844124]
[1727355108303,17.31,152.75,152.63,78.6]
[1727355108304,17.31,152.73,152.63,95.91]
[1727355108504,17.31,152.73,152.63,78.6]
[1727355108712,17.31,152.73,152.65,17.31]
[1727355108910,17.31,152.73,152.65,20.59661131]
[1727355109110,3.2739,152.72,152.66,3.275]
[1727355109899,3.2739,152.72,152.67,3.2748]
[1727355110104,3.2739,152.72,152.65,20.59661131]
[1727355110507,3.2739,152.72,152.66,3.2748]
[1727355111010,3.2739,152.72,152.65,20.59661131]
[1727355111804,3.2739,152.72,152.67,3.2748]
[1727355112812,3.2739,152.72,152.66,3.275]
[1727355113001,3.2739,152.72,152.64,17.31]
[1727355113203,3.2739,152.72,152.66,3.275]
[1727355113508,3.274,152.71,152.66,3.275]
[1727355114812,3.2739,152.72,152.66,3.275]
[1727355116913,3.2739,152.72,152.67,3.2748]
[1727355118416,3.2737,152.73,152.68,3.2746]
[1727355119029,3.2735,152.74,152.68,3.2744]
[1727355119216,17.31,152.75,152.68,3.2744]
[1727355119417,3.2737,152.73,152.68,3.2744]
[1727355119917,3.2739,152.72,152.67,3.2747]
[1727355120313,11.07,152.71,152.67,3.2747]
[1727355120713,11.07,152.71,152.68,3.2746]
[1727355121813,11.07,152.72,152.69,3.2744]
[1727355123216,5.3478,152.76,152.69,11.07]
[1727355123413,16.4178,152.76,152.71,11.07]
[1727355123621,5.3478,152.76,152.71,11.07]